bitfinex/quotes_BTCUSD_20250610
["timestamp","ask_amount","ask_price","bid_price","bid_amount"]
[1749522965828,0.05671385,109690.0,109680.0,0.8307997]
[1749522966533,0.22992977,109690.0,109680.0,0.60286603]
[1749522966768,0.80135576,109690.0,109680.0,0.54341293]
[1749522967029,0.78312331,109690.0,109680.0,0.53429559]
[1749522967272,0.22993052,109690.0,109680.0,0.53429559]
[1749522967504,0.78312331,109690.0,109680.0,0.53429559]
[1749522967757,1.06888331,109690.0,109680.0,0.53429559]
[1749522968655,1.05976671,109690.0,109680.0,0.53429559]
[1749522968894,1.07626671,109690.0,109680.0,0.53429559]
[1749522969119,1.09286671,109690.0,109680.0,0.53429559]
[1749522971945,1.09286671,109690.0,109680.0,0.13429559]
[1749522972176,1.09286671,109690.0,109680.0,0.107]
[1749522972669,1.18466457,109690.0,109680.0,0.507]
[1749522973141,1.21203557,109690.0,109680.0,0.507]
[1749522973619,1.75761144,109690.0,109680.0,0.107]
[1749522973859,1.76522836,109690.0,109680.0,0.007]
[1749522974934,2.33651015,109690.0,109680.0,0.005]
[1749522975028,2.46674542,109690.0,109680.0,0.005]
[1749522975286,2.39412707,109690.0,109680.0,0.006]
[1749522975496,2.39412707,109690.0,109680.0,0.005]
[1749522975732,2.37958622,109690.0,109680.0,0.002]
[1749522975962,2.39412707,109690.0,109680.0,0.004]
[1749522976465,2.28778836,109690.0,109680.0,0.004]
[1749522976701,2.30332921,109690.0,109680.0,0.002]
[1749522977162,2.28878836,109690.0,109680.0,0.002]
[1749522977394,2.30332921,109690.0,109680.0,0.002]
[1749522978092,2.30532921,109690.0,109680.0,0.002]
[1749522978321,2.29078836,109690.0,109680.0,0.002]
[1749522978563,2.30532921,109690.0,109680.0,0.002]
[1749522980323,2.29078836,109690.0,109680.0,0.002]
[1749522980547,2.30532921,109690.0,109680.0,0.002]
[1749522980757,2.39712707,109690.0,109680.0,0.002]
[1749522981178,2.30532921,109690.0,109680.0,0.002]
[1749522982970,2.39476921,109690.0,109680.0,0.002]
[1749522983809,2.38022836,109690.0,109680.0,0.002]
[1749522984016,2.39476921,109690.0,109680.0,0.002]
[1749522984236,2.38022836,109690.0,109680.0,0.002]
[1749522984670,2.39476921,109690.0,109680.0,0.002]
[1749522984877,2.01956921,109690.0,109680.0,0.002]
[1749522985088,2.39480921,109690.0,109680.0,0.002]
[1749522985319,2.38026836,109690.0,109680.0,0.002]
[1749522986372,2.00502836,109690.0,109680.0,0.002]
[1749522986630,2.01956921,109690.0,109680.0,0.002]
[1749522986853,2.39480921,109690.0,109680.0,0.002]
[1749522987066,2.03685144,109690.0,109680.0,0.002]
[1749522987279,2.32265144,109690.0,109680.0,0.002]
[1749522987485,2.33026836,109690.0,109680.0,0.002]
[1749522988129,2.32265144,109690.0,109680.0,0.002]
[1749522988538,2.33026836,109690.0,109680.0,0.002]
[1749522988764,0.81554278,109690.0,109680.0,0.002]
[1749522988989,1.73635865,109690.0,109680.0,0.002]
[1749522989256,1.71660457,109690.0,109680.0,0.002]
[1749522989467,1.33374765,109690.0,109680.0,0.002]
[1749522989679,1.70898765,109690.0,109680.0,0.0343]
[1749522990571,1.15579486,109690.0,109680.0,0.0343]
[1749522990796,1.71660457,109690.0,109680.0,0.0343]
[1749522991213,1.70898765,109690.0,109680.0,0.0343]
[1749522991428,1.71660457,109690.0,109680.0,0.0343]
[1749522991886,1.15579486,109690.0,109680.0,0.0343]
[1749522992126,1.33374765,109690.0,109680.0,0.0343]
[1749522992346,1.70894765,109690.0,109680.0,0.0343]
[1749522992775,0.27712988,109690.0,109680.0,0.21664865]
[1749522992990,0.42729801,109690.0,109680.0,0.25189103]
[1749522993203,0.62636313,109690.0,109680.0,0.25189103]
[1749522993424,1.17955592,109690.0,109680.0,0.25189025]
[1749522993632,0.60963003,109690.0,109680.0,0.2518902]
[1749522993842,1.16282282,109690.0,109680.0,0.24400019]
[1749522994267,1.16282282,109690.0,109680.0,0.23488309]
[1749522994511,1.16282282,109690.0,109680.0,0.64400019]
[1749522994742,1.16282282,109690.0,109680.0,0.6531172]
[1749522994956,1.17043974,109690.0,109680.0,0.6531172]
[1749522995164,1.17043974,109690.0,109680.0,0.64400019]
[1749522995808,1.16282282,109690.0,109680.0,0.6531172]
[1749522996036,1.17043974,109690.0,109680.0,0.6531172]
[1749522996258,1.16282282,109690.0,109680.0,0.66199642]
[1749522996464,0.13242091,109690.0,109680.0,0.67111327]
[1749522996674,0.43491401,109690.0,109680.0,0.67111327]
[1749522996897,0.44403044,109690.0,109680.0,0.67111327]
[1749522997541,0.43491401,109690.0,109680.0,0.28812503]
[1749522997755,0.43491401,109690.0,109680.0,0.27111327]
[1749522997965,0.44403036,109690.0,109680.0,0.68812504]
[1749522998217,0.44403036,109690.0,109680.0,0.68812941]
[1749522998883,0.44103036,109690.0,109680.0,0.67111327]
[1749522999140,0.43191401,109690.0,109680.0,0.67111327]
[1749522999590,0.44103027,109690.0,109680.0,0.67111327]
[1749523000035,0.43191401,109690.0,109680.0,0.67111327]
[1749523000487,0.44103036,109690.0,109680.0,0.67111327]
[1749523000703,0.44103036,109690.0,109680.0,0.67211327]
[1749523000920,0.43341344,109690.0,109680.0,0.67211327]
[1749523001216,0.44103036,109690.0,109680.0,0.67211327]
[1749523001457,0.43191401,109690.0,109680.0,0.67211327]
[1749523001709,0.44103036,109690.0,109680.0,0.67211327]
[1749523001945,0.03086498,109690.0,109680.0,1.31710392]
[1749523002218,0.0384819,109690.0,109680.0,0.79120672]
[1749523002445,0.04759775,109690.0,109680.0,0.69940886]
[1749523002678,0.05671376,109690.0,109680.0,0.66299642]
[1749523002904,0.61902265,109690.0,109680.0,0.67211327]
[1749523003134,0.06582986,109690.0,109680.0,0.67211327]
[1749523003351,0.03998083,109690.0,109680.0,0.67211327]
[1749523003562,0.04909676,109690.0,109680.0,0.67211327]
[1749523003808,0.06582978,109690.0,109680.0,0.67211327]
[1749523004252,0.07494596,109690.0,109680.0,0.67211327]
[1749523005153,0.06582978,109690.0,109680.0,0.67211327]
[1749523005372,0.08406214,109690.0,109680.0,0.67211327]
[1749523006104,0.35300937,109690.0,109680.0,0.67211327]
[1749523006342,0.06732937,109690.0,109680.0,0.67211327]
[1749523006786,0.24816288,109690.0,109680.0,0.63564513]
[1749523006994,0.24816288,109690.0,109680.0,0.65387924]
[1749523007215,0.24816288,109690.0,109680.0,0.63564513]
[1749523007426,0.24816288,109690.0,109680.0,0.64476223]
[1749523007853,0.24816288,109690.0,109680.0,0.65387924]
[1749523008712,0.24816288,109690.0,109680.0,0.64476223]
[1749523009131,0.23904678,109690.0,109680.0,0.63564513]
[1749523009336,0.23904678,109690.0,109680.0,0.62676591]
[1749523009549,0.22081392,109690.0,109680.0,0.61764865]
[1749523009779,0.22081392,109690.0,109680.0,0.63588325]
[1749523009980,0.22081392,109690.0,109680.0,0.64500043]
[1749523010192,0.22081392,109690.0,109680.0,0.65411753]
[1749523010627,0.22081392,109690.0,109680.0,0.64500043]
[1749523011248,0.22081392,109690.0,109680.0,0.65389229]
[1749523011468,0.77400671,109690.0,109680.0,0.65389229]
[1749523013082,0.22081392,109690.0,109680.0,0.65389229]
[1749523013534,0.22081392,109690.0,109680.0,0.62654051]
[1749523013754,0.22081392,109690.0,109680.0,0.64477511]
[1749523013966,0.77400671,109690.0,109680.0,0.64477511]
[1749523014215,0.77400671,109690.0,109680.0,0.403]
[1749523014216,0.95516457,109690.0,109680.0,0.403]
[1749523014430,1.53975736,109690.0,109680.0,0.003]
[1749523014658,1.70417357,109690.0,109680.0,0.003]
[1749523014883,2.1836975,109690.0,109680.0,0.003]
[1749523015110,2.24131442,109690.0,109680.0,0.003]
[1749523015342,0.82347589,109670.0,109660.0,0.002]
[1749523015569,1.20091375,109670.0,109660.0,0.002]
[1749523015837,1.2098979,109670.0,109660.0,0.002]
[1749523016489,1.2098979,109670.0,109660.0,0.003]
[1749523016696,1.2098979,109670.0,109660.0,0.00308843]
[1749523017366,1.2992579,109670.0,109660.0,0.00308843]
[1749523019354,1.85245069,109670.0,109660.0,0.00308843]
[1749523019563,1.91699154,109670.0,109660.0,0.00308843]
[1749523022514,1.90937462,109670.0,109660.0,0.00308843]
[1749523022723,1.91699154,109670.0,109660.0,0.00308843]
[1749523023189,0.81060596,109670.0,109660.0,0.00308843]
[1749523023414,1.91699154,109670.0,109660.0,0.00308843]
[1749523023838,1.07815875,109670.0,109660.0,0.00308843]
[1749523024059,1.36387875,109670.0,109660.0,0.00308843]
[1749523024471,0.81068596,109670.0,109660.0,0.00308843]
[1749523024944,1.91707154,109670.0,109660.0,0.00308843]
[1749523025596,1.94445454,109670.0,109660.0,0.00308843]
[1749523026104,1.94449454,109670.0,109660.0,0.00308843]
[1749523026539,1.39130175,109670.0,109660.0,0.00308843]
[1749523027420,0.93531677,109670.0,109660.0,0.00308843]
[1749523027743,1.34130175,109670.0,109660.0,0.00308843]
[1749523028376,0.62815637,109640.0,109630.0,0.21237917]
[1749523028585,0.91387637,109640.0,109630.0,0.32943014]
[1749523029002,0.91387637,109640.0,109630.0,0.32806767]
[1749523029207,0.91387637,109640.0,109630.0,0.34502981]
[1749523029433,0.91387612,109640.0,109630.0,0.34502981]
[1749523029646,0.61291495,109640.0,109630.0,0.34502981]
[1749523029866,0.03786498,109640.0,109630.0,0.34502981]
[1749523030087,0.03786498,109640.0,109630.0,0.8982226]
[1749523030297,0.32358498,109640.0,109630.0,0.74502981]
[1749523031026,0.32358498,109640.0,109630.0,0.74502975]
[1749523031260,0.32358498,109640.0,109630.0,0.76162975]
[1749523031965,0.3312019,109640.0,109630.0,0.76163553]
[1749523032387,0.32358498,109640.0,109630.0,0.76163553]
[1749523032600,0.32358498,109640.0,109630.0,0.7616355]
[1749523032824,0.32358498,109640.0,109630.0,0.74466767]
[1749523032825,0.3312019,109640.0,109630.0,0.74466767]
[1749523033038,0.3312019,109640.0,109630.0,0.76163549]
[1749523033248,0.32358498,109640.0,109630.0,0.76163556]
[1749523034099,0.03786498,109640.0,109630.0,0.7616394]
[1749523034307,0.0454819,109640.0,109630.0,0.76163938]
[1749523034527,0.0454819,109640.0,109630.0,0.76163903]
[1749523035360,0.07284266,109640.0,109630.0,0.74466767]
[1749523035568,0.07284266,109640.0,109630.0,0.76164424]
[1749523035778,0.07284266,109640.0,109630.0,0.76164426]
[1749523036208,0.07284266,109640.0,109630.0,0.76164425]
[1749523036624,0.06372216,109640.0,109630.0,0.76164425]
[1749523036832,0.07284266,109640.0,109630.0,0.76164425]
[1749523037056,0.07284266,109640.0,109630.0,0.76165654]
[1749523037273,0.07284266,109640.0,109630.0,0.74466767]
[1749523037479,0.08196325,109640.0,109630.0,0.76165652]
[1749523037712,0.25525783,109640.0,109630.0,0.72642558]
[1749523037962,0.79933103,109640.0,109630.0,0.54438678]
[1749523038197,0.98817197,109640.0,109630.0,0.11179793]
[1749523038417,1.01138889,109640.0,109630.0,0.11179793]
[1749523038678,1.29710889,109640.0,109630.0,0.11179793]
[1749523038911,1.29710889,109640.0,109630.0,0.01179793]
[1749523039588,1.01138889,109640.0,109630.0,0.01179793]
[1749523039819,0.7400361,109640.0,109630.0,0.01179793]
[1749523040122,1.29322889,109640.0,109630.0,0.01179793]
[1749523040354,1.29022889,109640.0,109630.0,0.01179793]
[1749523040613,1.27462889,109640.0,109630.0,0.01779793]
[1749523041068,1.27462889,109640.0,109630.0,0.01379793]
[1749523041284,1.27462889,109640.0,109630.0,0.01579793]
[1749523042702,1.27462889,109640.0,109630.0,0.02431055]
[1749523043373,1.27462889,109640.0,109630.0,0.04136907]
[1749523043594,1.27462889,109640.0,109630.0,0.03285645]
[1749523045387,1.27462889,109640.0,109630.0,0.03285515]
[1749523045594,1.27462889,109640.0,109630.0,0.01579793]
[1749523045829,1.27462889,109640.0,109630.0,0.032857]
[1749523046078,0.3309361,109640.0,109630.0,0.20735116]
[1749523046288,1.25928889,109640.0,109630.0,0.22441]
[1749523046519,1.25928889,109640.0,109630.0,0.24091008]
[1749523047173,1.25928889,109640.0,109630.0,0.23178858]
[1749523047378,1.25016839,109640.0,109630.0,0.04935717]
[1749523047598,1.25016839,109640.0,109630.0,0.05847876]
[1749523047772,1.25016839,109640.0,109630.0,0.04141952]
[1749523048008,1.25016839,109640.0,109630.0,0.05848195]
[1749523048647,1.25016839,109640.0,109630.0,0.04936036]
[1749523048870,1.25016839,109640.0,109630.0,0.05848195]
[1749523049080,1.25016839,109640.0,109630.0,0.03229793]
[1749523049283,1.25016839,109640.0,109630.0,0.04936121]
[1749523049699,1.25016839,109640.0,109630.0,0.04936126]
[1749523049906,1.25016839,109640.0,109630.0,0.03286126]
[1749523050532,1.25016839,109640.0,109630.0,0.03286079]
[1749523050740,1.26526839,109640.0,109630.0,0.03286079]
[1749523051167,1.28146839,109640.0,109630.0,0.03286079]
[1749523051582,1.26526839,109640.0,109630.0,0.03286079]
[1749523051999,1.26526839,109640.0,109630.0,0.03286158]
[1749523052207,1.26526839,109640.0,109630.0,0.03286168]
[1749523052417,1.26526839,109640.0,109630.0,0.01579793]
[1749523052639,1.26526839,109640.0,109630.0,0.03286049]
[1749523053475,0.99506839,109640.0,109630.0,0.0328605]
[1749523053891,1.28082839,109640.0,109630.0,0.03285982]
[1749523054096,1.28082839,109640.0,109630.0,0.03285986]
[1749523054309,1.28082839,109640.0,109630.0,0.01579793]
[1749523054519,1.28082839,109640.0,109630.0,0.03285986]
[1749523055384,0.99506839,109640.0,109630.0,0.03285986]
[1749523055585,0.99506839,109640.0,109630.0,0.03285841]
[1749523055795,0.99506839,109640.0,109630.0,0.01579793]
[1749523056018,0.99506839,109640.0,109630.0,0.03285838]
[1749523056221,1.28082839,109640.0,109630.0,0.03285838]
[1749523056431,0.99506839,109640.0,109630.0,0.03285838]
[1749523056648,1.28082839,109640.0,109630.0,0.03285838]
[1749523057323,1.28082839,109640.0,109630.0,0.01579793]
[1749523057537,1.28082839,109640.0,109630.0,0.03285753]
[1749523058667,1.28082839,109640.0,109630.0,0.01579793]
[1749523058891,0.99506839,109640.0,109630.0,0.03285819]
[1749523059140,1.84094511,109640.0,109630.0,0.01579793]
[1749523059384,1.91833511,109640.0,109630.0,0.01579793]
[1749523059594,1.36514232,109640.0,109630.0,0.01579793]
[1749523059817,1.37275924,109640.0,109630.0,0.01579793]
[1749523060041,1.4645571,109640.0,109630.0,0.01379793]
[1749523060274,1.4645571,109640.0,109630.0,0.01179793]
[1749523060990,1.4645971,109640.0,109630.0,0.01179793]
[1749523061232,1.37279924,109640.0,109630.0,0.01179793]
[1749523062127,0.99763924,109640.0,109630.0,0.01179793]
[1749523062364,1.37279924,109640.0,109630.0,0.01179793]
[1749523064141,0.81960645,109640.0,109630.0,0.01179793]
[1749523064407,1.37279924,109640.0,109630.0,0.01179793]
[1749523065062,1.4645971,109640.0,109630.0,0.01179793]
[1749523066368,1.37279924,109640.0,109630.0,0.01179793]
[1749523069142,1.29261839,109640.0,109630.0,0.01179793]
[1749523069561,1.25012839,109640.0,109630.0,0.02759793]
[1749523069774,1.26612839,109640.0,109630.0,0.01179793]
[1749523072035,1.25016839,109640.0,109630.0,0.01179793]
[1749523072469,1.25016839,109640.0,109630.0,0.02759793]
[1749523072915,0.4112156,109640.0,109630.0,0.04389793]
[1749523073168,1.25016839,109640.0,109630.0,0.06095994]
[1749523074025,1.25016839,109640.0,109630.0,0.06095966]
[1749523074272,1.25016839,109640.0,109630.0,0.04389793]
[1749523074486,1.25016839,109640.0,109630.0,0.06095966]
[1749523074699,1.25016839,109640.0,109630.0,0.04389793]
[1749523074927,1.25016839,109640.0,109630.0,0.06095966]
[1749523076170,1.25016839,109640.0,109630.0,0.06096001]
[1749523077654,1.25016839,109640.0,109630.0,0.06096128]
[1749523079413,1.25016839,109640.0,109630.0,0.06096281]
[1749523080694,1.25016839,109640.0,109630.0,0.06096433]
[1749523081319,1.25016839,109640.0,109630.0,0.06096434]
[1749523081967,1.25016839,109640.0,109630.0,0.0609659]
[1749523082596,1.25016839,109640.0,109630.0,0.04389793]
[1749523082807,1.25016839,109640.0,109630.0,0.06096635]
[1749523084073,0.87500839,109640.0,109630.0,0.06096635]
[1749523084279,0.6968956,109640.0,109630.0,0.06096635]
[1749523084521,1.25008839,109640.0,109630.0,0.06096603]
[1749523084930,0.87500839,109640.0,109630.0,0.06096603]
[1749523085143,1.25008839,109640.0,109630.0,0.06096603]
[1749523085352,1.25008839,109640.0,109630.0,0.06049795]
[1749523085563,0.96436839,109640.0,109630.0,0.06049795]
[1749523085803,1.25008839,109640.0,109630.0,0.06049795]
[1749523086016,0.6968956,109640.0,109630.0,0.06049693]
[1749523086242,1.25008839,109640.0,109630.0,0.06049693]
[1749523086665,1.21922341,109640.0,109630.0,0.06049693]
[1749523086882,1.25008839,109640.0,109630.0,0.06049693]
[1749523087093,1.25008839,109640.0,109630.0,0.04342985]
[1749523087308,0.3218156,109640.0,109630.0,0.06049663]
[1749523087534,1.25008839,109640.0,109630.0,0.04342985]
[1749523087743,1.25008839,109640.0,109630.0,0.46049551]
[1749523089039,1.25008839,109640.0,109630.0,0.46049574]
[1749523089246,1.25008839,109640.0,109630.0,0.46049578]
[1749523090773,1.25008839,109640.0,109630.0,0.06049578]
[1749523091014,1.15825053,109640.0,109630.0,0.06049558]
[1749523091231,0.50808082,109640.0,109630.0,0.06049518]
[1749523091473,0.50808082,109640.0,109630.0,0.46049518]
[1749523091693,0.0399854,109640.0,109630.0,0.69758586]
[1749523091899,0.0399854,109640.0,109630.0,0.73397935]
[1749523091900,0.34390616,109640.0,109630.0,0.73397935]
[1749523092336,0.34390616,109640.0,109630.0,0.73397691]
[1749523092558,0.05822616,109640.0,109630.0,0.71691402]
[1749523092774,0.34240249,109640.0,109630.0,0.73397686]
[1749523092993,0.35152308,109640.0,109630.0,0.73397686]
[1749523093211,0.35152308,109640.0,109630.0,0.73397661]
[1749523093862,0.35152308,109640.0,109630.0,0.7339702]
[1749523094094,0.32566515,109640.0,109630.0,0.71691402]
[1749523094295,0.35152291,109640.0,109630.0,0.7339702]
[1749523094709,0.06584291,109640.0,109630.0,0.7339702]
[1749523094920,0.05672241,109640.0,109630.0,0.7339702]
[1749523095126,0.065843,109640.0,109630.0,0.7339702]
[1749523095354,0.065843,109640.0,109630.0,0.7066765]
[1749523095557,0.065843,109640.0,109630.0,0.71689527]
[1749523095767,0.065843,109640.0,109630.0,0.73395287]
[1749523095975,0.065843,109640.0,109630.0,0.71689527]
[1749523097976,0.07496367,109640.0,109630.0,0.71689527]
[1749523098631,0.08408442,109640.0,109630.0,0.71689527]
[1749523098821,0.065843,109640.0,109630.0,0.71689527]
[1749523099735,0.05822608,109640.0,109630.0,0.71689527]
[1749523099960,0.05672241,109640.0,109630.0,0.71689527]
[1749523100390,0.33474407,109650.0,109640.0,0.20976507]
[1749523100606,0.34386316,109650.0,109640.0,0.23703886]
[1749523100820,0.36059984,109650.0,109640.0,0.23703886]
[1749523101072,0.33474357,109650.0,109640.0,0.26963886]
[1749523101286,0.36059967,109650.0,109640.0,0.30603235]
[1749523101508,0.03998415,109650.0,109640.0,0.30603235]
[1749523101717,0.05310349,109650.0,109640.0,0.30603235]
[1749523101936,0.04398415,109650.0,109640.0,0.30603235]
[1749523102141,0.03486498,109650.0,109640.0,0.4246559]
[1749523102359,0.05160107,109650.0,109640.0,0.39738211]
[1749523102581,0.06072049,109650.0,109640.0,0.39738211]
[1749523102796,0.06984,109650.0,109640.0,0.30558425]
[1749523103005,0.06984,109650.0,109640.0,0.33285332]
[1749523103224,0.06983992,109650.0,109640.0,0.30558425]
[1749523103440,0.06983983,109650.0,109640.0,0.33285037]
[1749523103714,0.06072041,109650.0,109640.0,0.33285037]
[1749523103919,0.06072041,109650.0,109640.0,0.73285037]
[1749523104347,0.06983992,109650.0,109640.0,0.73285037]
[1749523104771,0.06072041,109650.0,109640.0,0.73285037]
[1749523105011,0.06984,109650.0,109640.0,0.73285037]
[1749523105186,0.2613583,109650.0,109640.0,0.72373036]
[1749523105441,0.25223854,109650.0,109640.0,0.73285053]
[1749523105660,0.06984,109650.0,109640.0,0.73285053]
[1749523106088,0.27047813,109650.0,109640.0,0.72373036]
[1749523106301,0.06983992,109650.0,109640.0,0.74197078]
[1749523106739,0.06983992,109650.0,109640.0,0.75087315]
[1749523107175,0.06072041,109650.0,109640.0,0.75087315]
[1749523107385,0.06072041,109650.0,109640.0,0.72360703]
[1749523107602,0.06072041,109650.0,109640.0,0.75086375]
[1749523107818,0.06072041,109650.0,109640.0,0.72360703]
[1749523108249,0.06983983,109650.0,109640.0,0.72360703]
[1749523109132,0.0424819,109650.0,109640.0,0.72360703]
[1749523109354,0.05160107,109650.0,109640.0,0.72360703]
[1749523109563,0.06072041,109650.0,109640.0,0.72360703]
[1749523109779,0.05160107,109650.0,109640.0,0.77819727]
[1749523109983,0.06072049,109650.0,109640.0,0.77819727]
[1749523110244,0.06072033,109650.0,109640.0,0.77819727]
[1749523110457,0.06983975,109650.0,109640.0,0.77819727]
[1749523110692,0.06983975,109650.0,109640.0,0.72360703]
[1749523111121,0.06983984,109650.0,109640.0,0.72360703]
[1749523111981,0.06072033,109650.0,109640.0,0.77819727]
[1749523112196,0.06983975,109650.0,109640.0,0.72360703]
[1749523112857,0.07895934,109650.0,109640.0,0.72360703]
[1749523113082,0.26135904,109650.0,109640.0,0.6871256]
[1749523113308,0.26135904,109650.0,109640.0,0.70536669]
[1749523113309,0.27047872,109650.0,109640.0,0.70536669]
[1749523113524,0.06784092,109650.0,109640.0,0.71448686]
[1749523113734,0.065841,109650.0,109640.0,0.71448686]
[1749523113956,0.79231266,109650.0,109640.0,0.46899349]
[1749523114182,0.79989574,109650.0,109640.0,0.42725837]
[1749523114388,0.79989574,109650.0,109640.0,0.4]
[1749523114608,0.79231266,109650.0,109640.0,0.40922531]
[1749523115035,0.79231266,109650.0,109640.0,0.43648368]
[1749523115242,0.79231266,109650.0,109640.0,0.45218368]
[1749523116977,0.79231266,109650.0,109640.0,0.05218368]
[1749523117212,0.00761692,109650.0,109640.0,0.25283978]
[1749523117395,0.35144075,109650.0,109640.0,0.32297369]
[1749523117639,0.35144008,109650.0,109640.0,0.72297369]
[1749523117868,0.36055984,109650.0,109640.0,0.72297369]
[1749523118503,0.08407968,109650.0,109640.0,0.72297369]
[1749523118925,0.08407968,109650.0,109640.0,0.70473327]
[1749523119148,0.79231283,109650.0,109640.0,0.47287717]
[1749523119358,0.80731283,109650.0,109640.0,0.42725837]
[1749523119782,0.80731283,109650.0,109640.0,0.43637912]
[1749523121087,0.78907323,109650.0,109640.0,0.42725837]
[1749523121291,0.78907323,109650.0,109640.0,0.43637912]
[1749523121473,0.78907323,109650.0,109640.0,0.66443235]
[1749523121710,0.78907323,109650.0,109640.0,0.48201718]
[1749523121923,0.78907323,109650.0,109640.0,0.47289643]
[1749523122565,0.78907323,109650.0,109640.0,0.4820171]
[1749523122777,0.78907323,109650.0,109640.0,0.66443227]
[1749523123003,0.2300002,109650.0,109640.0,0.68855269]
[1749523123223,0.04760141,109650.0,109640.0,0.68855269]
[1749523123441,0.0384819,109650.0,109640.0,0.67041449]
[1749523123648,0.0384819,109650.0,109640.0,0.68651449]
[1749523123649,0.34228075,109650.0,109640.0,0.68651449]
[1749523123859,0.3240419,109650.0,109640.0,0.68651449]
[1749523124074,0.3240419,109650.0,109640.0,0.74110473]
[1749523124328,0.30229618,109650.0,109640.0,0.74110473]
[1749523124541,0.3240419,109650.0,109640.0,0.74110473]
[1749523124752,0.31642498,109650.0,109640.0,0.74110473]
[1749523124974,0.33316107,109650.0,109640.0,0.74110473]
[1749523125187,0.31642498,109650.0,109640.0,0.76834549]
[1749523125835,0.31642498,109650.0,109640.0,0.76934549]
[1749523126261,0.31642498,109650.0,109640.0,0.76834549]
[1749523126687,0.31642498,109650.0,109640.0,0.76934549]
[1749523126894,0.3240419,109650.0,109640.0,0.77034549]
[1749523127107,0.03086498,109650.0,109640.0,0.77234549]
[1749523128425,0.03086498,109650.0,109640.0,1.57470479]
[1749523128856,0.0384819,109650.0,109640.0,1.021512]
[1749523129277,0.03086498,109650.0,109640.0,1.021512]
[1749523129516,0.0384819,109650.0,109640.0,1.021512]
[1749523129923,0.03086498,109650.0,109640.0,1.021512]
[1749523130347,0.0384819,109650.0,109640.0,1.021512]
[1749523130560,0.03086498,109650.0,109640.0,1.021512]
[1749523131177,0.0384819,109650.0,109640.0,1.021512]
[1749523131392,0.03086498,109650.0,109640.0,1.021512]
[1749523131833,0.0384819,109650.0,109640.0,1.021512]
[1749523132777,0.03998415,109650.0,109640.0,1.021512]
[1749523132980,0.0384819,109650.0,109640.0,1.021512]
[1749523133240,0.04760107,109650.0,109640.0,1.021512]
[1749523133482,0.0384819,109650.0,109640.0,1.021512]
[1749523134628,0.03086498,109650.0,109640.0,1.021512]
[1749523135522,0.0384819,109650.0,109640.0,1.021512]
[1749523138596,0.04760107,109650.0,109640.0,1.021512]
[1749523138813,0.0384819,109650.0,109640.0,1.021512]
[1749523139529,0.05672083,109650.0,109640.0,1.00541217]
[1749523139773,0.05672083,109650.0,109640.0,1.01453234]
[1749523140185,0.06584059,109650.0,109640.0,1.01453234]
[1749523140626,0.05672083,109650.0,109640.0,1.01453234]
[1749523140845,0.06584059,109650.0,109640.0,1.01453234]
[1749523141060,0.05672083,109650.0,109640.0,0.71397234]
[1749523141278,0.07192083,109650.0,109640.0,0.71397234]
[1749523141723,0.05672083,109650.0,109640.0,0.71397234]
[1749523141904,0.05672083,109650.0,109640.0,0.72897234]
[1749523142373,0.04760124,109650.0,109640.0,0.72897234]
[1749523142583,0.06584025,109650.0,109640.0,0.72897234]
[1749523143685,0.04760124,109650.0,109640.0,0.72897234]
[1749523143898,0.06584033,109650.0,109640.0,0.71397234]
[1749523144112,0.06584025,109650.0,109640.0,0.71397234]
[1749523144340,0.28257838,109650.0,109640.0,0.67761141]
[1749523144560,0.65043387,109650.0,109640.0,0.67761141]
[1749523144786,0.65043387,109650.0,109640.0,0.66849107]
[1749523144993,0.83283241,109650.0,109640.0,0.66849124]
[1749523145418,0.82371282,109650.0,109640.0,0.66849124]
[1749523145641,0.82371282,109650.0,109640.0,0.71404155]
[1749523145856,0.25522003,109650.0,109640.0,0.71404155]
[1749523146281,0.25522003,109650.0,109640.0,0.67761158]
[1749523146742,0.25522003,109650.0,109640.0,0.68673183]
[1749523147738,0.25522003,109650.0,109640.0,0.66849124]
[1749523147952,0.27152003,109650.0,109640.0,0.66849124]
[1749523148157,0.27152003,109650.0,109640.0,0.68673183]
[1749523148337,0.25522003,109650.0,109640.0,0.68673183]
[1749523149297,0.08194075,109650.0,109640.0,0.67761158]
[1749523149505,0.08194075,109650.0,109640.0,0.68673175]
[1749523150138,0.07282049,109650.0,109640.0,0.68673175]
[1749523150349,0.05672041,109650.0,109640.0,0.70263175]
[1749523150763,0.06583992,109650.0,109640.0,0.70263175]
[1749523151414,0.05672041,109650.0,109640.0,0.70263175]
[1749523151618,0.06583992,109650.0,109640.0,0.70263175]
[1749523153556,0.05672041,109650.0,109640.0,0.70263175]
[1749523153889,0.06583992,109650.0,109640.0,0.70263175]
[1749523154439,0.05672049,109650.0,109640.0,0.71853175]
[1749523154890,0.04760107,109650.0,109640.0,0.71853175]
[1749523155174,0.06583984,109650.0,109640.0,0.70263175]
[1749523155585,0.05672033,109650.0,109640.0,0.70263175]
[1749523155757,0.06583984,109650.0,109640.0,0.70263175]
[1749523156633,0.05672049,109650.0,109640.0,0.70263175]
[1749523157478,0.06584,109650.0,109640.0,0.70263175]
[1749523158334,0.05672049,109650.0,109640.0,0.70263175]
[1749523159184,0.08194016,109650.0,109640.0,0.68673175]
[1749523159610,0.07282049,109650.0,109640.0,0.68673175]
[1749523159812,0.08194,109650.0,109640.0,0.68673175]
[1749523160456,0.09105967,109650.0,109640.0,0.68673175]
[1749523160682,0.08194,109650.0,109640.0,0.68673175]
[1749523160908,0.09105967,109650.0,109640.0,0.68673175]
[1749523161120,0.09105959,109650.0,109640.0,0.68673175]
[1749523161996,0.09105959,109650.0,109640.0,0.67761158]
[1749523161997,0.2643393,109650.0,109640.0,0.67761158]
[1749523162330,0.2643393,109650.0,109640.0,0.67761174]
[1749523162745,0.2643393,109650.0,109640.0,0.49504605]
[1749523162746,1.45216672,109650.0,109640.0,0.49504605]
[1749523162994,1.53240199,109650.0,109640.0,0.404]
[1749523163211,1.62168199,109650.0,109640.0,0.004]
[1749523164520,1.54906364,109650.0,109640.0,0.004]
[1749523165766,0.99587085,109650.0,109640.0,0.004]
[1749523166379,0.99587085,109650.0,109640.0,0.02106906]
[1749523166621,0.45163327,109650.0,109640.0,0.004]
[1749523166836,0.45163327,109650.0,109640.0,0.02106873]
[1749523167050,1.00482606,109650.0,109640.0,0.42106873]
[1749523167956,0.45163327,109650.0,109640.0,0.42106158]
[1749523168171,1.00482606,109650.0,109640.0,0.42106158]
[1749523168393,1.00482606,109650.0,109640.0,0.42106157]
[1749523169470,1.00482606,109650.0,109640.0,0.404]
[1749523169690,1.00482606,109650.0,109640.0,0.42106137]
[1749523170130,1.00482606,109650.0,109640.0,0.02106137]
[1749523170640,1.00482606,109650.0,109640.0,0.42105725]
[1749523171087,0.99587085,109650.0,109640.0,0.404]
[1749523171312,0.99587085,109650.0,109640.0,0.42105721]
[1749523171519,0.99587085,109650.0,109640.0,0.421056]
[1749523172608,0.99587085,109650.0,109640.0,0.42105382]
[1749523172816,0.99587085,109650.0,109640.0,0.404]